bitfinex/quotes_ETHUSD_20240816
["timestamp","ask_amount","ask_price","bid_price","bid_amount"]
[1723809269190,3.82761,2612.6,2612.2,0.437832]
[1723809269582,3.82749,2612.7,2612.2,0.437832]
[1723809269788,3.82738,2612.8,2612.3,3.82804]
[1723809269989,3.82738,2612.8,2612.3,5.2424592]
[1723809270512,3.82738,2612.8,2612.3,5.2423892]
[1723809270714,3.82717,2612.9,2612.4,3.82788]
[1723809271012,3.82697,2613.1,2612.5,3.82762]
[1723809271205,2.3728,2613.3,2612.6,0.43956331]
[1723809271206,7.65414,2613.0,2612.6,0.43956331]
[1723809271414,3.82702,2613.0,2612.7,0.55]
[1723809272009,3.82702,2613.0,2612.6,0.55]
[1723809272208,3.82702,2613.0,2612.6,4.35945125]
[1723809272415,3.82683,2613.2,2612.6,8.18697125]
[1723809272640,7.65367,2613.2,2612.6,8.18697125]
[1723809272839,3.82683,2613.2,2612.7,2.34787234]
[1723809273147,3.82688,2613.1,2612.7,2.34787234]
[1723809273943,3.82674,2613.2,2612.6,4.37752]
[1723809274840,3.82674,2613.2,2612.7,3.82742]
[1723809275324,3.82671,2613.3,2612.8,0.55]
[1723809275325,3.82658,2613.3,2612.8,0.55]
[1723809275530,7.65297,2613.4,2612.8,4.3773]
[1723809275746,3.82644,2613.4,2612.8,0.987742]
[1723809275949,3.82673,2613.2,2612.8,0.987742]
[1723809276543,3.82687,2613.1,2612.8,0.55]
[1723809276745,1.99281202,2613.8,2612.4,54.79]
[1723809276746,3.82654,2613.4,2612.7,2.4026]
[1723809276947,3.82675,2613.2,2612.8,0.79026]
[1723809277150,3.82675,2613.2,2612.8,0.64026]
[1723809278550,3.82675,2613.2,2612.8,0.63882956]
[1723809279351,7.65307,2613.4,2612.8,4.46610956]
[1723809279677,3.82653,2613.4,2612.8,4.46610956]
[1723809279878,3.82651,2613.4,2612.8,35.63882956]
[1723809280078,3.82666,2613.3,2612.8,35.63882956]
[1723809280675,3.82666,2613.3,2612.8,0.63882956]
[1723809280974,3.82666,2613.3,2612.8,0.08882956]
[1723809281174,3.82666,2613.3,2612.7,6.22995]
[1723809281349,3.82666,2613.3,2612.8,3.8273]
[1723809282438,3.82651,2613.4,2612.8,3.8273]
[1723809282643,3.82622,2613.6,2612.9,3.82715]
[1723809282843,5.41453806,2614.0,2612.8,3.80945125]
[1723809282844,3.82657,2613.4,2612.8,3.80945125]
[1723809283046,7.65314,2613.4,2612.9,0.55]
[1723809283264,3.82657,2613.4,2612.9,0.55]
[1723809283465,3.82651,2613.4,2612.9,0.55]
[1723809284577,3.82651,2613.4,2612.9,4.37716]
[1723809284878,7.65252,2613.6,2612.9,8.20432]
[1723809285044,3.82632,2613.5,2613.0,3.82701]
[1723809285241,3.82624,2613.6,2613.0,7.65384]
[1723809286051,7.65251,2613.6,2613.0,3.82692]
[1723809286385,3.82624,2613.6,2613.0,3.82692]
[1723809286580,3.82622,2613.6,2613.1,3.82686]
[1723809286783,3.82594,2613.8,2613.2,3.82672]
[1723809287083,3.82594,2613.8,2613.2,6.12792]
[1723809287449,3.82599,2613.7,2613.2,6.12792]
[1723809287946,3.82614,2613.6,2613.2,2.3012]
[1723809288146,3.82614,2613.6,2613.1,3.82686]
[1723809288355,3.82651,2613.4,2612.9,4.37708]
[1723809288557,3.82658,2613.3,2612.9,0.55]
[1723809289850,7.65301,2613.4,2612.9,0.55]
[1723809290451,3.8265,2613.4,2612.9,4.37715]
[1723809290679,3.8265,2613.4,2612.9,8.18654125]
[1723809291075,3.82629,2613.5,2613.0,2.2639]
[1723809291279,3.82629,2613.5,2613.0,6.09083]
[1723809291474,7.65267,2613.5,2613.0,2.2639]
[1723809291680,3.82629,2613.5,2613.0,2.2639]
[1723809291876,3.82643,2613.4,2613.0,2.2639]
[1723809293451,0.382594,2613.8,2613.0,2.2639]
[1723809293452,3.82628,2613.6,2613.0,6.0909]
[1723809293652,3.82638,2613.5,2613.0,2.2639]
[1723809293887,3.82628,2613.6,2613.0,2.2639]
[1723809294078,3.82644,2613.4,2613.0,2.2639]
[1723809296889,7.65254,2613.6,2613.1,3.82686]
[1723809297185,7.65247,2613.6,2613.1,3.82686]
[1723809297689,3.82621,2613.6,2613.1,7.65364]
[1723809297992,3.826,2613.7,2613.2,3.82671]
[1723809298350,3.82593,2613.8,2613.3,3.82656]
[1723809298591,7.65189,2613.8,2613.3,3.82656]
[1723809298790,7.65189,2613.8,2613.1,4.873534]
[1723809298791,3.82593,2613.8,2613.2,3.82671]
[1723809299149,3.82602,2613.7,2613.2,3.82671]
[1723809299553,3.82578,2613.9,2613.3,7.65307]
[1723809299792,3.82578,2613.9,2613.3,3.8265]
[1723809300154,3.82578,2613.9,2613.4,3.82641]
[1723809300618,3.82548,2614.1,2613.5,3.82628]
[1723809300758,3.82548,2614.1,2613.5,6.24118]
[1723809301096,3.82548,2614.1,2613.5,10.06731]
[1723809301458,3.82548,2614.1,2613.5,6.2411]
[1723809301708,3.82548,2614.1,2613.5,2.4149]
[1723809301709,3.82571,2613.9,2613.5,2.4149]
[1723809302506,3.82557,2614.0,2613.5,6.24116]
[1723809303058,3.82557,2614.0,2613.5,2.4149]
[1723809303401,3.82577,2613.9,2613.5,2.4149]
[1723809305077,3.82542,2614.1,2613.6,3.82611]
[1723809305398,3.82542,2614.1,2613.5,2.4149]
[1723809305590,4.208112,2614.0,2613.5,2.4149]
[1723809306403,3.82572,2613.9,2613.4,3.82631]
[1723809306648,3.82572,2613.9,2613.5,0.55]
[1723809308100,0.382542,2614.0,2613.5,4.37628]
[1723809308492,0.382542,2614.0,2613.5,0.55]
[1723809308493,4.208192,2614.0,2613.5,0.55]
[1723809308735,3.82565,2614.0,2613.5,4.37624]
[1723809310839,3.82565,2614.0,2613.5,0.55]
[1723809311014,1.58893806,2614.6,2613.6,2.3724]
[1723809311214,3.82507,2614.4,2613.7,2.9224]
[1723809311527,3.82508,2614.4,2613.8,3.82577]
[1723809311727,3.82483,2614.5,2614.0,3.82554]
[1723809311925,6.23169,2614.9,2614.2,3.82524]
[1723809312095,3.82445,2614.8,2614.3,3.82511]
[1723809312296,3.82453,2614.7,2614.2,6.18645]
[1723809313251,2.3813,2615.2,2614.2,9.97429479]
[1723809313539,2.3813,2615.2,2614.0,31.06553]
[1723809313540,3.82471,2614.6,2614.0,31.06553]
[1723809313753,4.445311,2614.6,2614.0,31.06547]
[1723809313899,3.82471,2614.6,2614.0,31.06547]
[1723809314297,7.64947,2614.6,2614.0,31.06547]
[1723809314535,2.3813,2614.7,2614.2,3.82525]
[1723809314770,3.82461,2614.7,2614.3,0.382525]
[1723809314960,3.82461,2614.7,2614.2,3.82525]
[1723809315111,3.82416,2615.0,2614.0,27.24]
[1723809315310,3.82416,2615.0,2614.5,3.82479]
[1723809316261,3.82431,2614.9,2614.4,6.28846]
[1723809316408,3.82431,2614.9,2614.4,3.82496]
[1723809316750,2.2671,2615.6,2614.7,3.82444]
[1723809316951,3.82296,2615.8,2615.2,3.82378]
[1723809317306,3.82296,2615.8,2615.2,3.82379]
[1723809317505,3.82296,2615.8,2615.2,3.82378]
[1723809317708,4.814234,2615.8,2615.2,3.82378]
[1723809317953,3.82314,2615.7,2615.1,3.82383]
[1723809318104,3.82353,2615.4,2614.7,3.82443]
[1723809318310,3.82365,2615.3,2614.7,7.64887]
[1723809318511,3.82365,2615.3,2614.8,3.82435]
[1723809319472,3.82331,2615.6,2614.9,3.82421]
[1723809319473,3.82354,2615.4,2614.9,3.82421]
[1723809319665,3.82337,2615.5,2615.0,3.82401]
[1723809319829,3.8233,2615.6,2615.0,3.82401]
[1723809320027,3.8233,2615.6,2614.8,4.443213]
[1723809320230,3.82374,2615.3,2614.8,3.82426]
[1723809320447,6.17573,2615.4,2614.8,3.82426]
[1723809320618,3.82329,2615.6,2615.0,3.82401]
[1723809320813,7.64659,2615.6,2615.0,3.82401]
[1723809321018,3.82329,2615.6,2615.0,3.82401]
[1723809321223,7.64662,2615.6,2615.0,3.82401]
[1723809321422,3.82329,2615.6,2615.0,3.82401]
[1723809321747,7.64663,2615.6,2615.0,3.82401]
[1723809322118,2.734397,2615.7,2615.0,4.6889795]
[1723809322321,3.82332,2615.6,2615.1,3.82393]
[1723809322628,3.82255,2616.1,2615.2,3.82371]
[1723809322629,3.82284,2615.9,2615.2,3.82371]
[1723809322871,2.4679,2616.0,2615.4,3.82337]
[1723809323023,6.29061,2616.0,2615.4,3.82337]
[1723809323222,3.82287,2615.9,2615.4,3.82337]
[1723809323416,3.82294,2615.8,2615.2,3.82367]
[1723809324369,3.82294,2615.8,2615.3,3.82355]
[1723809324534,7.64597,2615.8,2615.2,3.82367]
[1723809324733,3.82294,2615.8,2615.2,3.82367]
[1723809324941,7.64597,2615.8,2615.2,3.82367]
[1723809325141,3.82294,2615.8,2615.2,5.33344]
[1723809325360,7.64598,2615.8,2615.2,5.33344]
[1723809325558,3.82294,2615.8,2615.2,9.15715]
[1723809325766,3.82294,2615.8,2615.2,5.33344]
[1723809326472,3.82294,2615.8,2615.3,1.278344]
[1723809326787,3.82294,2615.8,2615.3,5.101974]
[1723809327086,7.64596,2615.8,2615.3,5.101974]
[1723809327254,3.82294,2615.8,2615.3,5.101974]
[1723809328396,3.82307,2615.7,2615.3,1.278344]
[1723809331879,3.82294,2615.8,2615.3,1.278344]
[1723809332162,6.18896,2616.3,2615.7,3.82297]
[1723809332375,2.3667,2616.3,2615.7,3.82297]
[1723809333245,2.3667,2616.3,2615.7,4.205267]
[1723809333580,3.82235,2616.2,2615.7,0.382297]
[1723809333735,3.82235,2616.2,2615.6,3.82313]
[1723809333736,3.82256,2616.1,2615.6,3.82313]
[1723809335657,3.82236,2616.2,2615.6,3.82313]
[1723809335864,3.82236,2616.2,2615.7,4.205373]
[1723809336858,3.8225,2616.1,2615.7,0.382313]
[1723809337240,3.8225,2616.1,2615.6,3.82317]
[1723809337405,7.64508,2616.1,2615.6,3.82317]
[1723809337555,2.3495,2616.0,2615.4,27.24]
[1723809337757,3.82311,2615.7,2615.4,27.24]
[1723809338264,3.82311,2615.7,2614.6,3.82462]
[1723809338265,3.82213,2616.4,2615.8,3.82291]
[1723809338571,8.21352885,2617.1,2615.6,6.26842]
[1723809338572,2.4071,2617.1,2616.1,3.82238]
[1723809338772,2.4071,2617.1,2616.4,3.82203]
[1723809338773,3.82132,2616.9,2616.4,3.82203]
[1723809339091,0.24071,2617.0,2616.5,3.82182]
[1723809339289,3.82109,2617.1,2616.5,3.82182]
[1723809339455,4.443989,2617.0,2616.5,3.82182]
[1723809340253,0.622819,2617.0,2616.5,3.82182]
[1723809340454,7.64219,2617.1,2616.5,3.82182]
[1723809340789,3.8254865,2617.3,2616.7,3.82158]
[1723809341015,3.8254765,2617.3,2616.7,7.6431]
[1723809341168,0.0046265,2617.3,2616.7,0.77195323]
[1723809341355,0.0046265,2617.3,2617.0,3.82116]
[1723809341554,0.0046265,2617.3,2617.1,3.82099]
[1723809341994,0.0046265,2617.3,2617.1,3.82089]
[1723809342195,0.0046265,2617.3,2616.9,6.247]
[1723809342196,0.0046265,2617.3,2617.2,7.64174]
[1723809342592,0.0046265,2617.3,2617.2,7.7181502]
[1723809342770,0.0046265,2617.3,2617.2,7.64174]
[1723809343291,0.0046265,2617.3,2617.2,8.19174]
[1723809343504,0.59887892,2618.9,2617.6,2.4587]
[1723809343703,0.59887892,2618.9,2618.7,3.81868]
[1723809343870,3.81811,2619.1,2618.5,3.8189]
[1723809344081,3.8179,2619.3,2618.5,3.81889]
[1723809344271,3.8179,2619.3,2618.4,2.2827]
[1723809344272,3.8173,2619.7,2618.8,3.8184]
[1723809344619,3.8173,2619.7,2618.4,2.2827]
[1723809344620,3.81726,2619.7,2618.6,3.81873]
[1723809344762,0.54598579,2619.8,2618.6,3.81873]
[1723809344763,7.63582,2619.3,2618.6,3.81873]
[1723809344968,3.81789,2619.3,2618.6,3.81873]
[1723809345177,3.81789,2619.3,2618.6,7.63745]
[1723809345376,3.81789,2619.3,2618.7,3.81866]
[1723809346826,3.81789,2619.3,2618.6,3.81872]
[1723809346969,4.581438,2619.3,2618.6,3.81872]
[1723809347364,4.581438,2619.3,2618.6,7.63745]
[1723809347904,4.581438,2619.3,2618.6,7.63743]
[1723809348067,3.81796,2619.2,2618.7,0.55]
[1723809348269,0.763548,2619.3,2618.7,0.55]
[1723809348608,3.81759,2619.5,2618.8,3.81853]
[1723809348768,7.63523,2619.5,2618.8,3.81853]
[1723809348968,3.81759,2619.5,2618.7,0.55]
[1723809349172,3.8179,2619.3,2618.7,0.55]
[1723809349360,3.8181,2619.1,2618.5,8.0]
[1723809349568,3.8184,2618.9,2618.5,7.45]
[1723809349769,3.81854,2618.8,2618.5,7.45]
[1723809349973,3.81854,2618.8,2618.4,19.79]
[1723809350576,3.81873,2618.7,2618.4,19.79]
[1723809350806,3.81884,2618.6,2618.4,19.79]
[1723809350966,3.81854,2618.8,2618.4,19.79]
[1723809351375,6.26872,2619.0,2618.4,23.60909]
[1723809351617,2.4504,2619.0,2618.4,23.60909]
[1723809351815,2.4504,2619.0,2618.4,23.60903]
[1723809351999,3.81811,2619.1,2618.4,23.60903]
[1723809352000,3.81811,2619.1,2618.5,3.81895]
[1723809352374,3.81811,2619.1,2618.4,19.79]
[1723809352375,3.8184,2618.9,2618.4,19.79]
[1723809352805,3.81829,2619.0,2618.4,23.60911]
[1723809353016,4.828412,2619.1,2618.4,27.42814]
[1723809353316,4.828412,2619.1,2618.4,23.60902]
[1723809353992,3.81834,2619.0,2618.4,23.60902]
[1723809354336,3.81839,2618.9,2618.4,19.79]
[1723809354980,3.81898,2618.5,2618.4,19.79]
[1723809355177,3.81877,2618.7,2617.9,7.8337]
[1723809355178,3.81936,2618.3,2617.9,7.8337]
[1723809355380,3.81951,2618.2,2617.9,7.8337]
[1723809355584,7.63905,2618.2,2617.9,7.45]
[1723809355886,3.81951,2618.2,2617.9,7.45]
[1723809356700,3.81919,2618.4,2617.9,7.45]
[1723809356898,3.81937,2618.3,2617.9,7.45]
[1723809357812,3.81945,2618.2,2617.9,7.45]
[1723809358448,3.81927,2618.3,2617.9,7.45]
[1723809360798,3.81944,2618.2,2617.9,7.45]
[1723809361039,3.81944,2618.2,2617.8,19.79]
[1723809361241,3.81944,2618.2,2617.5,7.45]
[1723809361242,7.63959,2618.0,2617.5,7.45]
[1723809361565,3.81978,2618.0,2617.5,7.45]
[1723809362242,3.81923,2618.4,2617.8,3.81997]
[1723809362397,4.04428,2618.6,2617.9,0.381997]
[1723809362603,0.22538,2618.6,2617.6,6.98218]
[1723809362920,3.81993,2617.9,2617.5,7.45]
[1723809363301,3.81965,2618.1,2617.5,7.45]
[1723809363496,3.81972,2618.0,2617.5,7.45]
[1723809364535,2.2568,2618.2,2617.6,3.82026]
[1723809364851,2.2568,2618.2,2617.7,3.82013]
[1723809365035,3.81938,2618.3,2617.7,3.82013]
[1723809366016,3.81942,2618.2,2617.7,3.82013]
[1723809366515,2.4618,2618.5,2617.7,5.28263912]
[1723809366737,2.4618,2618.5,2617.7,5.28256912]
[1723809366918,2.4618,2618.5,2618.0,3.81969]
[1723809366919,3.81911,2618.5,2618.0,3.81969]
[1723809367116,6.08903,2618.8,2618.0,3.81969]
[1723809367346,3.81898,2618.5,2618.0,3.81969]
[1723809367564,6.08902,2618.8,2618.1,3.81944]
[1723809368054,3.81873,2618.7,2618.1,3.81944]
[1723809368254,3.81862,2618.8,2618.3,3.81924]
[1723809368453,3.8183,2619.0,2618.3,4.4517599]
[1723809368454,7.63668,2619.0,2618.3,4.4517599]
[1723809368674,3.8184,2618.9,2618.3,3.81918]
[1723809369061,3.8183,2619.0,2618.5,3.81896]
[1723809369243,3.81753,2619.5,2618.7,3.81855]
[1723809369244,3.81776,2619.4,2618.7,3.81855]
[1723809369451,3.81776,2619.4,2618.9,3.81838]
[1723809369630,3.81776,2619.4,2618.6,0.381896]
[1723809369850,2.3569,2619.5,2618.5,42.45]
[1723809369851,0.69362387,2619.3,2618.5,42.45]
[1723809370067,3.81848,2618.9,2618.5,42.45]
[1723809370267,3.81816,2619.1,2618.5,7.45]
[1723809370268,7.63637,2619.1,2618.5,7.45]
[1723809370467,3.81816,2619.1,2618.5,11.26897]
[1723809370670,3.81789,2619.3,2618.6,3.81873]
[1723809370872,7.63584,2619.3,2618.6,3.81874]
[1723809371381,7.63584,2619.3,2618.7,6.16095]
[1723809371382,3.81789,2619.3,2618.7,6.16095]
[1723809371678,3.81804,2619.2,2618.7,2.3423]
[1723809371846,3.81804,2619.2,2618.6,4.77298515]
[1723809372255,7.63579,2619.3,2618.7,5.28118912]
[1723809372588,3.81799,2619.2,2618.7,5.28118912]
[1723809372889,3.81789,2619.3,2618.7,5.28118912]
[1723809373191,3.81761,2619.5,2618.8,0.62353943]
[1723809373392,5.0,2620.0,2619.4,3.81756]
[1723809373542,5.0,2620.0,2619.6,3.81736]
[1723809373964,5.0,2620.0,2619.6,3.81728]
[1723809374270,5.0,2620.0,2619.6,3.81731]
[1723809374774,5.0,2620.0,2619.6,7.63459]
[1723809374988,5.0,2620.0,2619.5,0.381756]
[1723809374989,5.0,2620.0,2619.5,35.381756]
[1723809375177,5.0,2620.0,2619.5,35.0]
[1723809375591,5.0,2620.0,2619.6,3.81736]
[1723809375891,5.0,2620.0,2619.6,3.81726]
[1723809376059,5.0,2620.0,2619.5,35.0]
[1723809376463,8.81683,2620.0,2619.4,3.81755]
[1723809376688,8.81683,2620.0,2619.2,31.0579]
[1723809376689,3.81697,2619.9,2619.2,31.05784]
[1723809376856,8.598548,2620.0,2619.3,4.36771]
[1723809377189,12.415428,2620.0,2619.3,4.36771]
[1723809377398,5.0585528,2619.9,2619.3,0.55]
[1723809377557,7.3352,2620.0,2619.3,0.55]
[1723809377558,7.3352,2620.0,2619.4,3.81765]
[1723809377752,7.3352,2620.0,2619.4,7.63522]
[1723809378090,7.3352,2620.0,2619.6,3.81735]
[1723809378269,5.0,2620.0,2619.4,7.63512]
[1723809378474,5.0,2620.0,2619.4,7.360062]
[1723809378668,3.81703,2619.9,2619.3,0.55]
[1723809378865,6.21418787,2619.9,2619.2,7.45]
[1723809379080,7.25944879,2619.9,2619.3,3.81772]
[1723809379474,7.25944879,2619.9,2619.2,11.26786]
[1723809379679,3.81725,2619.7,2619.2,11.26786]
[1723809379880,7.25944879,2619.9,2619.2,11.26786]
[1723809380054,7.25944879,2619.9,2619.3,3.81769]
[1723809380799,11.07649879,2619.9,2619.2,14.755463]
[1723809381002,7.25944879,2619.9,2619.2,14.755463]
[1723809381207,5.0,2620.0,2619.3,3.81768]
[1723809381437,5.0,2620.0,2619.4,0.55]
[1723809381584,5.0,2620.0,2619.5,3.81751]
[1723809382213,8.81691,2620.0,2619.4,4.36766]
[1723809382425,5.0,2620.0,2619.4,0.55]
[1723809382722,5.0,2620.0,2619.5,3.81748]
[1723809383076,5.0,2620.0,2619.3,3.81767]
[1723809383077,3.81703,2619.9,2619.3,3.81767]
[1723809383705,3.81731,2619.7,2619.2,7.45]
[1723809383905,3.81752,2619.5,2619.2,7.45]
[1723809384277,0.07615787,2619.4,2619.0,19.79]
[1723809384530,0.07615787,2619.4,2618.4,23.52911]
[1723809384531,3.8182,2619.1,2618.4,23.52911]
[1723809384823,3.81841,2618.9,2618.4,11.25945125]
[1723809385052,3.89433787,2619.1,2618.4,11.25945125]
[1723809385228,3.81844,2618.9,2618.4,11.25945125]
[1723809385377,3.81854,2618.8,2618.4,7.45]
[1723809385587,3.81869,2618.7,2618.2,19.79]
[1723809386331,7.63746,2618.7,2618.2,19.79]
[1723809386622,7.63747,2618.7,2618.2,19.79]
[1723809386823,3.81869,2618.7,2618.2,19.79]
[1723809386985,3.81884,2618.6,2618.2,19.79]
[1723809387587,3.81869,2618.7,2618.2,19.79]
[1723809387893,3.81849,2618.9,2618.2,19.79]
[1723809388094,7.63819,2618.5,2618.2,19.79]
[1723809388280,7.63819,2618.5,2617.9,3.81985]
[1723809388480,0.381844,2618.8,2617.6,3.27941438]
[1723809388684,2.4901,2619.1,2618.6,3.81873]
[1723809388897,2.4901,2619.1,2618.4,3.81903]
[1723809388898,3.81826,2619.0,2618.4,3.81902]
[1723809389094,0.381796,2619.2,2618.3,0.07637117]
[1723809389332,2.3276,2619.3,2618.3,0.07637117]
[1723809389333,2.3276,2619.3,2618.6,3.81873]
[1723809389509,2.3276,2619.3,2618.7,0.076365]
[1723809389706,2.3276,2619.3,2618.8,3.81852]
[1723809389893,3.81774,2619.4,2618.8,3.81846]
[1723809390317,3.81774,2619.4,2618.9,3.81835]
[1723809390837,3.81774,2619.4,2618.8,3.89482027]
[1723809390838,3.81774,2619.4,2618.8,7.63692]
[1723809391130,3.81774,2619.4,2618.9,3.81836]
[1723809391731,7.63548,2619.4,2618.9,3.81836]
[1723809392036,3.81774,2619.4,2618.9,3.81836]
[1723809392745,7.63551,2619.4,2618.9,3.81836]
[1723809392896,7.63551,2619.4,2618.7,9.93752]
[1723809393215,7.63551,2619.4,2618.7,10.549418]
[1723809393418,3.81788,2619.3,2618.7,4.430438]
[1723809394062,3.81788,2619.3,2618.7,39.430438]
[1723809394202,3.81797,2619.2,2618.7,35.611898]
[1723809394404,3.81797,2619.2,2618.6,19.79]
[1723809394605,3.81825,2619.0,2618.6,19.79]
[1723809394811,2.3196,2619.1,2618.6,19.79]
[1723809395022,2.3196,2619.1,2618.6,23.60882]
[1723809395221,6.13778,2619.1,2618.6,19.79]
[1723809395645,3.8184,2618.9,2618.6,19.79]
[1723809396011,3.81838,2619.0,2618.6,19.79]
[1723809396333,3.81841,2618.9,2618.6,19.79]
[1723809396535,3.81833,2619.0,2618.6,19.79]
[1723809397922,7.63667,2619.0,2618.6,19.79]
[1723809398165,3.81839,2618.9,2618.6,19.79]
[1723809399855,3.81862,2618.8,2618.3,58.90027712]
[1723809400029,3.81839,2618.9,2618.3,58.90027712]
[1723809400230,2.3196,2619.1,2618.3,55.08113712]
[1723809400427,2.3196,2619.1,2618.3,19.79]
[1723809400428,7.63755,2618.7,2618.3,19.79]
[1723809400627,3.81872,2618.7,2618.3,19.79]
[1723809401019,7.63697,2618.9,2618.3,19.79]
[1723809401327,3.81856,2618.8,2618.3,19.79]
[1723809402461,3.81871,2618.7,2618.3,19.79]
[1723809403057,7.63696,2618.9,2618.3,19.79]
[1723809403367,3.81869,2618.7,2618.3,23.59945125]
[1723809403566,3.81869,2618.7,2618.3,19.79]
[1723809403971,3.81862,2618.8,2618.3,19.79]
[1723809404327,3.81843,2618.9,2618.3,23.60919]
[1723809404532,3.81843,2618.9,2618.3,27.41864125]
[1723809404839,3.81843,2618.9,2618.3,19.79]
[1723809405056,7.63696,2618.9,2618.3,19.79]
[1723809405260,3.81843,2618.9,2618.3,23.60926]
[1723809405595,2.4161,2619.4,2618.9,3.8183]
[1723809406082,3.81755,2619.5,2618.9,3.8183]
[1723809406231,3.81755,2619.5,2618.9,7.63662]
[1723809406436,3.81768,2619.4,2618.9,3.8183]
[1723809406679,3.81768,2619.4,2618.7,2.4639]
[1723809406838,3.81789,2619.3,2618.8,3.81853]
[1723809407036,4.440823,2619.6,2618.9,7.63668]
[1723809407037,3.81766,2619.5,2618.9,7.63668]
[1723809407243,3.81748,2619.6,2619.1,3.81809]
[1723809407788,2.4161,2619.7,2619.1,7.63611]
[1723809407968,6.23341,2619.7,2619.1,3.81802]
[1723809408280,3.81745,2619.6,2619.0,3.81825]
[1723809410575,7.63527,2619.5,2618.9,4.5093443]
[1723809410876,7.63524,2619.5,2618.9,4.5093443]
[1723809411078,3.81762,2619.5,2618.9,4.5093443]
[1723809411386,3.81762,2619.5,2619.0,0.51375873]
[1723809411882,3.81744,2619.6,2619.0,4.33193873]
[1723809412386,6.23342,2619.7,2619.0,4.33193873]
[1723809412884,3.81763,2619.5,2619.0,0.51375873]
[1723809413083,3.81793,2619.3,2618.6,3.81872]
[1723809413288,3.81797,2619.2,2618.7,0.55]
[1723809413650,6.16437,2619.2,2618.7,0.55]
[1723809414051,6.16437,2619.2,2618.4,6.11531]
[1723809414052,3.81819,2619.1,2618.4,6.11531]
[1723809414253,3.81839,2618.9,2618.3,19.79]
[1723809415052,3.81839,2618.9,2618.3,23.60925]
[1723809415284,3.81839,2618.9,2618.3,27.337136]
[1723809415653,3.81876,2618.7,2618.3,19.79]
[1723809415878,3.81854,2618.8,2618.3,19.79]
[1723809416151,3.81843,2618.9,2618.3,23.6092]
[1723809416347,3.81825,2619.0,2618.4,3.81905]
[1723809416573,3.81825,2619.0,2618.4,7.04698327]
[1723809416977,2.3464,2619.2,2618.6,3.81871]
[1723809417455,3.81833,2619.0,2618.4,7.04695327]
[1723809417999,3.81833,2619.0,2618.4,7.63803]
[1723809418160,3.81817,2619.1,2618.5,3.8189]
[1723809418358,6.16447,2619.2,2618.6,3.81873]
[1723809418589,6.16447,2619.2,2618.7,3.81862]
[1723809418899,3.81777,2619.4,2618.7,3.81862]
[1723809418900,3.81782,2619.3,2618.7,3.81862]
[1723809419700,3.81777,2619.4,2618.7,4.868344]
[1723809419701,3.81796,2619.2,2618.7,4.868344]
[1723809420806,3.81796,2619.2,2618.6,0.38189]
[1723809420998,3.81802,2619.2,2618.6,4.20069]
[1723809421757,3.8181,2619.1,2618.6,4.20069]
[1723809422003,3.81796,2619.2,2618.7,3.81868]
[1723809422872,3.81796,2619.2,2618.6,0.38189]
[1723809422873,3.81796,2619.2,2618.6,4.20072]
[1723809423165,3.81796,2619.2,2618.5,3.81887]
[1723809423166,3.81827,2619.0,2618.5,3.81887]
[1723809424467,3.81827,2619.0,2618.3,6.27936]
[1723809424777,3.81855,2618.8,2618.2,7.45]
[1723809425305,3.81883,2618.6,2618.2,7.45]
[1723809425482,3.81883,2618.6,2618.1,23.60955]
[1723809425483,3.8192,2618.4,2618.1,19.79]
[1723809425664,3.8192,2618.4,2617.8,12.0685453]
[1723809425859,3.8192,2618.4,2617.9,5.75227246]
[1723809426080,3.81898,2618.5,2618.0,1.32774842]
[1723809426291,3.81928,2618.3,2618.0,1.32774842]
[1723809426497,3.81898,2618.5,2618.0,1.78206409]
[1723809427006,6.11813,2618.7,2618.1,3.81956]
[1723809427207,6.11813,2618.7,2618.1,3.81949]
[1723809427507,3.81884,2618.6,2618.1,4.76161341]
[1723809428066,3.81884,2618.6,2618.1,0.94213341]
[1723809428307,3.81898,2618.5,2618.0,1.78206409]
[1723809428472,7.63808,2618.5,2618.0,1.78206409]
[1723809428815,9.937,2618.7,2618.0,5.60166409]
[1723809428974,3.81885,2618.6,2618.0,5.60166409]
[1723809431512,6.11819,2618.7,2617.8,7.45]
[1723809431513,3.81937,2618.3,2617.8,7.45]
[1723809431680,3.81952,2618.2,2617.8,7.45]
[1723809432682,3.81966,2618.1,2617.8,7.45]
[1723809433630,3.81966,2618.1,2617.6,19.79]
[1723809433786,3.81985,2617.9,2617.6,19.79]
[1723809434317,7.63978,2617.9,2617.6,19.79]
[1723809434718,3.81985,2617.9,2617.6,19.79]
[1723809435033,7.63983,2617.9,2617.6,19.79]
[1723809435185,3.81963,2618.1,2617.6,19.79]
[1723809435703,3.81974,2618.0,2617.6,19.79]
[1723809436450,3.81934,2618.3,2617.6,21.769]
[1723809436602,3.81957,2618.1,2617.6,21.769]
[1723809436804,3.81972,2618.0,2617.6,21.769]
[1723809437009,3.81972,2618.0,2617.6,19.79]
[1723809437348,3.81957,2618.1,2617.6,19.79]
[1723809437498,3.81943,2618.2,2617.6,23.61026]
[1723809437835,3.81922,2618.4,2617.8,3.81999]
[1723809438035,6.15947,2618.5,2617.7,6.30553]
[1723809438036,3.81907,2618.5,2617.7,6.30553]
[1723809438326,3.8192,2618.4,2617.8,3.4338708]
[1723809438525,3.81928,2618.3,2617.8,2.8838708]